bitfinex-derivatives/quotes_SOLF0:USTF0_20250909
["timestamp","ask_amount","ask_price","bid_price","bid_amount"]
[1757379080739,7.83,213.57,213.39,6.12]
[1757379081438,18.67,213.57,213.39,6.12]
[1757379081640,21.35,213.57,213.39,6.12]
[1757379082034,7.83,213.57,213.39,6.12]
[1757379083940,7.83,213.57,213.41,6.71758629]
[1757379084140,7.83,213.57,213.42,6.12]
[1757379084339,7.83,213.57,213.48,2.65492617]
[1757379084539,7.83,213.57,213.48,8.77492617]
[1757379085938,7.83,213.57,213.48,6.12]
[1757379086241,10.48492617,213.57,213.43,2.65492617]
[1757379086440,2.65492617,213.57,213.43,123.65492617]
[1757379086639,7.83,213.56,213.43,123.65492617]
[1757379086840,7.83,213.56,213.44,6.12]
[1757379090546,7.83,213.56,213.44,127.12]
[1757379090845,7.83,213.56,213.44,129.77492617]
[1757379091649,68.21492617,213.57,213.44,129.77492617]
[1757379092146,7.83,213.56,213.44,129.77492617]
[1757379093340,68.21492617,213.57,213.44,129.77492617]
[1757379093545,7.83,213.53,213.44,129.77492617]
[1757379093747,7.83,213.53,213.44,127.12]
[1757379094649,7.83,213.5,213.4,6.12]
[1757379095340,7.83,213.46,213.43,0.03595561]
[1757379098852,0.03535238,213.47,213.43,0.03595561]
[1757379100650,7.83,213.46,213.43,0.03595561]
[1757379103649,0.03535238,213.47,213.43,0.03595561]
[1757379104448,7.12,213.45,213.43,0.03595561]
[1757379104854,1.7008365,213.46,213.43,0.03595561]
[1757379105055,8.8208365,213.44,213.43,0.03595561]
[1757379115568,0.03535238,213.47,213.43,6.15595561]
[1757379115767,7.15535238,213.47,213.43,6.15595561]
[1757379116068,0.03535238,213.47,213.45,6.12]
[1757379116268,0.03535238,213.47,213.46,7.8208365]
[1757379116860,7.12,213.56,213.46,7.8208365]
[1757379117063,45.43473242,213.57,213.51,1.7008365]
[1757379117268,7.12,213.56,213.51,1.7008365]
[1757379117467,7.12,213.56,213.49,1.7008365]
[1757379117966,7.12,213.52,213.46,1.7008365]
[1757379118161,1.7008365,213.53,213.5,0.02996968]
[1757379118469,7.12,213.52,213.5,0.02996968]
[1757379118764,1.7008365,213.53,213.5,0.02996968]
[1757379118974,7.12,213.52,213.5,0.02996968]
[1757379119472,7.12,213.51,213.5,0.02996968]
[1757379120571,8.8208365,213.51,213.5,0.02996968]
[1757379121371,8.8208365,213.53,213.5,0.02996968]
[1757379121572,7.12,213.52,213.5,0.02996968]
[1757379122374,8.8208365,213.51,213.5,0.02996968]
[1757379122777,14.01212943,213.51,213.5,0.02996968]
[1757379122980,5.19129293,213.51,213.5,0.02996968]
[1757379123281,1.7008365,213.53,213.5,0.02996968]
[1757379123282,8.8208365,213.53,213.5,0.02996968]
[1757379123979,7.12,213.52,213.5,0.02996968]
[1757379124778,1.7008365,213.53,213.5,0.02996968]
[1757379124980,7.12,213.52,213.5,0.02996968]
[1757379125788,8.8208365,213.51,213.5,0.02996968]
[1757379126079,14.01212943,213.51,213.5,0.02996968]
[1757379126685,14.01212943,213.51,213.41,7.8208365]
[1757379126886,14.01212943,213.51,213.38,1.7008365]
[1757379126887,7.12,213.45,213.38,1.7008365]
[1757379127084,1.7008365,213.42,213.37,6.15]
[1757379127279,1.7008365,213.42,213.36,7.8508365]
[1757379128284,7.12,213.45,213.36,7.8508365]
[1757379128587,1.7008365,213.41,213.37,6.15]
[1757379128786,1.7008365,213.41,213.36,1.7008365]
[1757379128987,1.7008365,213.41,213.37,6.15]
[1757379129785,117.16,213.47,213.3,6.15]
[1757379129786,1.7008365,213.38,213.3,6.15]
[1757379129985,1.7008365,213.36,213.3,6.15]
[1757379131284,1.7008365,213.34,213.3,6.15]
[1757379131489,8.8208365,213.34,213.3,6.15]
[1757379131982,1.7008365,213.34,213.28,6.15]
[1757379132176,7.12,213.38,213.28,6.15]
[1757379132382,1.7008365,213.35,213.28,6.15]
[1757379132585,5.19129293,213.41,213.32,6.15]
[1757379132786,1.7008365,213.39,213.32,6.15]
[1757379133990,1.7008365,213.37,213.31,1.7008365]
[1757379134180,1.7008365,213.37,213.32,6.16]
[1757379134384,1.7008365,213.37,213.31,1.7008365]
[1757379134685,1.7008365,213.37,213.31,7.8608365]
[1757379135381,9.2908365,213.35,213.28,1.7008365]
[1757379135585,1.7008365,213.33,213.27,6.16]
[1757379135986,1.7008365,213.31,213.27,6.16]
[1757379136387,7.59,213.35,213.27,7.8608365]
[1757379136593,1.7008365,213.38,213.31,1.7008365]
[1757379137086,1.7008365,213.38,213.3,7.8608365]
[1757379137287,1.7008365,213.36,213.3,7.8608365]
[1757379137889,1.7008365,213.38,213.3,7.8608365]
[1757379138085,5.19129293,213.42,213.34,1.7008365]
[1757379138289,1.7008365,213.41,213.34,1.7008365]
[1757379138494,1.7008365,213.41,213.33,6.16]
[1757379138688,7.59,213.44,213.37,1.7008365]
[1757379138987,7.80554423,213.48,213.37,1.7008365]
[1757379138988,1.7008365,213.43,213.37,1.7008365]
[1757379139188,1.7008365,213.43,213.36,6.16]
[1757379139392,1.7008365,213.39,213.31,6.16]
[1757379139589,1.7008365,213.39,213.32,1.7008365]
[1757379140188,1.7008365,213.37,213.31,6.16]
[1757379141094,1.7008365,213.39,213.32,1.7008365]
[1757379142598,1.7008365,213.37,213.31,6.16]
[1757379144600,1.7008365,213.35,213.3,1.7008365]
[1757379144988,7.59,213.34,213.25,6.16]
[1757379145189,1.7008365,213.33,213.25,7.8608365]
[1757379145389,1.7008365,213.31,213.25,7.8608365]
[1757379146998,1.7008365,213.35,213.28,6.16]
[1757379147193,7.59,213.38,213.31,1.7008365]
[1757379147394,1.7008365,213.37,213.31,1.7008365]
[1757379149095,1.7008365,213.39,213.31,1.7008365]
[1757379149698,1.7008365,213.39,213.33,1.7008365]
[1757379149902,1.7008365,213.41,213.33,1.7008365]
[1757379150095,9.2908365,213.42,213.35,7.8608365]
[1757379150399,7.59,213.42,213.35,6.16]
[1757379151999,7.59,213.42,213.31,10.34929693]
[1757379154292,7.59,213.42,213.31,4.18929693]
[1757379154501,7.59,213.42,213.32,6.16]
[1757379155500,5.19129293,213.41,213.32,6.16]
[1757379155695,5.19129293,213.41,213.23,121.0]
[1757379155696,7.59,213.41,213.3,6.16]
[1757379166508,7.59,213.41,213.29,121.0]
[1757379166708,12.73129293,213.41,213.26,6.16]
[1757379166911,12.73129293,213.39,213.26,6.16]
[1757379167110,7.54,213.37,213.26,6.16]
[1757379168015,7.80554423,213.41,213.26,6.16]
[1757379168016,5.19129293,213.4,213.26,6.16]
[1757379168214,7.54,213.41,213.26,6.16]
[1757379169318,12.73129293,213.41,213.26,6.16]
[1757379170117,7.54,213.4,213.26,54.1]
[1757379170313,12.73129293,213.4,213.3,2.65938757]
[1757379172022,7.54,213.38,213.3,2.65938757]
[1757379173221,7.54,213.38,213.31,6.16]
[1757379173520,7.54,213.38,213.34,6.16]
[1757379175617,7.54,213.38,213.33,2.65938757]
[1757379175618,5.19129293,213.4,213.33,2.65938757]
[1757379175816,5.19129293,213.42,213.39,2.65938757]
[1757379176120,5.19129293,213.45,213.39,8.81938757]
[1757379177118,12.73129293,213.46,213.39,8.81938757]
[1757379178323,7.54,213.46,213.39,8.81938757]
[1757379179224,12.73129293,213.46,213.39,8.81938757]
[1757379179620,12.73129293,213.46,213.36,2.65938757]
[1757379179816,5.19129293,213.45,213.36,2.65938757]
[1757379180328,12.73129293,213.46,213.36,2.65938757]
[1757379181326,7.54,213.46,213.39,2.65938757]
[1757379182422,12.73129293,213.5,213.4,6.16]
[1757379182632,5.19129293,213.49,213.4,6.16]
[1757379184728,5.19129293,213.49,213.42,2.65938757]
[1757379184929,5.19129293,213.48,213.42,2.65938757]
[1757379185423,7.54,213.47,213.4,6.16]
[1757379185629,7.54,213.46,213.34,2.65938757]
[1757379185824,7.54,213.44,213.34,2.65938757]
[1757379186025,12.73129293,213.42,213.31,8.81938757]
[1757379186627,7.54,213.42,213.34,2.65938757]
[1757379187232,5.19129293,213.43,213.35,6.16]
[1757379187431,5.19129293,213.45,213.37,2.65938757]
[1757379187926,7.54,213.44,213.37,2.65938757]
[1757379188731,5.19129293,213.46,213.37,2.65938757]
[1757379188926,7.54,213.47,213.4,2.65938757]
[1757379191736,0.03054013,213.46,213.4,2.65938757]
[1757379191937,0.03054013,213.46,213.4,8.81938757]
[1757379194432,0.03054013,213.46,213.4,129.81938757]
[1757379196836,0.03054013,213.46,213.4,127.16]
[1757379197037,0.03054013,213.46,213.41,2.65938757]
[1757379197237,7.67054013,213.46,213.41,2.65938757]
[1757379197537,7.64,213.45,213.4,121.0]
[1757379198136,0.03054013,213.46,213.4,121.0]
[1757379198335,7.64,213.45,213.4,121.0]
[1757379198539,0.03054013,213.46,213.42,6.15]
[1757379198734,0.03054013,213.46,213.45,6.15]
[1757379213151,12.83129293,213.56,213.45,6.61]
[1757379213455,7.64,213.56,213.52,6.15]
[1757379213949,7.64,213.56,213.51,2.65938757]
[1757379213950,7.64,213.56,213.48,120.33938757]
[1757379214154,7.64,213.56,213.48,2.65938757]
[1757379214354,7.64,213.56,213.5,0.03377848]
[1757379216853,12.83129293,213.56,213.5,0.03377848]
[1757379217059,5.19129293,213.55,213.5,0.03377848]
[1757379217256,7.64,213.53,213.5,0.03377848]
[1757379217757,5.19129293,213.54,213.5,0.03377848]
[1757379218154,7.64,213.53,213.5,0.03377848]
[1757379218357,5.19129293,213.54,213.5,0.03377848]
[1757379218557,7.64,213.53,213.5,0.03377848]
[1757379218758,5.19129293,213.54,213.5,0.03377848]
[1757379218956,7.64,213.53,213.5,0.03377848]
[1757379219157,5.19129293,213.54,213.5,0.03377848]
[1757379219357,7.64,213.53,213.5,0.03377848]
[1757379219563,15.4906805,213.53,213.5,0.03377848]
[1757379219757,7.64,213.51,213.5,0.03377848]
[1757379220360,13.29129293,213.51,213.41,6.17]
[1757379220663,7.64,213.49,213.41,6.17]
[1757379222664,12.83129293,213.47,213.37,6.2]
[1757379222958,12.83129293,213.45,213.37,6.2]
[1757379223155,7.6,213.43,213.36,2.65938757]
[1757379223357,7.6,213.43,213.34,6.18]
[1757379223555,12.79129293,213.43,213.34,6.18]
[1757379223870,0.03327647,213.41,213.34,6.18]
[1757379224862,0.03327647,213.41,213.4,6.18]
[1757379228369,0.03327647,213.41,213.4,7.88054911]
[1757379230774,5.19129293,213.49,213.41,6.18]
[1757379230967,5.19129293,213.49,213.48,1.70054911]
[1757379231271,5.19129293,213.5,213.48,1.70054911]
[1757379232073,5.19129293,213.51,213.49,7.88054911]
[1757379232272,12.79129293,213.5,213.47,0.03550948]
[1757379232468,7.6,213.47,213.38,1.70054911]
[1757379232768,7.6,213.43,213.36,1.70054911]
[1757379233170,1.70054911,213.42,213.36,1.70054911]
[1757379233572,0.03398377,213.41,213.36,1.70054911]
[1757379233772,7.6,213.4,213.36,1.70054911]
[1757379235972,0.03398377,213.41,213.36,1.70054911]
[1757379236172,7.6,213.4,213.36,1.70054911]
[1757379237371,7.6,213.4,213.35,1.70054911]
[1757379237573,7.6,213.4,213.35,7.92054911]
[1757379239676,7.6,213.4,213.35,1.70054911]
[1757379239877,7.6,213.4,213.36,6.22]
[1757379240271,0.03398377,213.41,213.38,6.22]
[1757379240475,0.03398377,213.41,213.4,6.22]
[1757379241180,0.03398377,213.41,213.4,124.26]
[1757379245275,0.03398377,213.41,213.4,124.24]
[1757379245577,7.6,213.49,213.41,6.22]
[1757379245779,7.6,213.49,213.45,1.70054911]
[1757379246279,7.6,213.5,213.45,1.70054911]
[1757379246780,5.18532159,213.51,213.45,1.73483316]
[1757379246981,7.6,213.5,213.45,1.73483316]
[1757379247178,6.8858707,213.52,213.45,1.73483316]
[1757379247379,7.6,213.51,213.45,1.73483316]
[1757379247580,12.78532159,213.51,213.45,1.73483316]
[1757379247874,12.78532159,213.51,213.45,0.03428405]
[1757379247875,7.6,213.46,213.45,0.03428405]
[1757379248182,12.78532159,213.46,213.34,1.70054911]
[1757379248381,7.6,213.4,213.34,1.70054911]
[1757379248582,1.70054911,213.39,213.32,1.70054911]
[1757379248771,1.70054911,213.37,213.31,96.30515743]
[1757379249282,1.70054911,213.37,213.31,213.84515743]
[1757379250780,7.6,213.38,213.32,1.70054911]
[1757379250977,7.6,213.38,213.32,7.95054911]
[1757379251583,7.6,213.38,213.33,117.54]
[1757379251785,7.6,213.38,213.33,123.79]
[1757379252585,7.6,213.43,213.36,1.70054911]
[1757379252785,9.30054911,213.43,213.36,1.70054911]
[1757379253781,7.6,213.43,213.38,7.97054911]
[1757379254384,7.09,213.44,213.38,7.97054911]
[1757379255086,7.09,213.44,213.38,125.51054911]
[1757379255483,7.09,213.44,213.38,7.97054911]
[1757379256985,0.03370191,213.43,213.38,1.70054911]
[1757379257379,7.09,213.42,213.38,1.70054911]
[1757379257579,0.03370191,213.43,213.38,1.70054911]
[1757379257786,0.03370191,213.43,213.38,1.73069344]
[1757379257984,7.09,213.42,213.38,1.73069344]
[1757379258586,0.03370191,213.43,213.38,1.73069344]
[1757379258892,7.09,213.42,213.38,1.73069344]
[1757379259986,0.03370191,213.43,213.38,0.03014433]
[1757379260191,7.09,213.42,213.38,0.03014433]
[1757379260787,0.03370191,213.43,213.38,0.03014433]
[1757379260988,7.09,213.42,213.38,0.03014433]
[1757379261891,0.03370191,213.43,213.38,0.03014433]
[1757379262085,7.09,213.42,213.38,0.03014433]
[1757379262286,0.03370191,213.43,213.38,0.03014433]
[1757379262583,7.09,213.42,213.38,0.03014433]
[1757379262885,0.03370191,213.43,213.41,6.27]
[1757379263086,0.03370191,213.43,213.4,1.70054911]
[1757379263280,7.12370191,213.43,213.4,1.70054911]
[1757379264492,0.03370191,213.43,213.41,6.27]
[1757379264788,0.03370191,213.43,213.42,7.97054911]
[1757379265591,5.18532159,213.49,213.42,7.97054911]
[1757379265791,7.09,213.5,213.47,1.70054911]
[1757379266693,5.18532159,213.51,213.47,1.70054911]
[1757379267196,12.27532159,213.52,213.47,7.97054911]
[1757379267487,5.18532159,213.52,213.47,1.70054911]
[1757379267690,7.09,213.51,213.47,1.70054911]
[1757379268096,5.18532159,213.53,213.49,7.97054911]
[1757379268294,12.27532159,213.53,213.49,7.97054911]
[1757379268489,5.18532159,213.55,213.49,1.70054911]
[1757379268794,7.09,213.55,213.51,1.70054911]
[1757379269093,7.09,213.55,213.51,7.97054911]
[1757379269498,7.12281054,213.55,213.51,7.97054911]
[1757379270296,0.03281054,213.55,213.53,1.70054911]
[1757379272094,0.03281054,213.55,213.54,6.27]
[1757379277492,5.18532159,213.61,213.54,6.27]
[1757379277788,7.09,213.63,213.59,7.97054911]
[1757379277789,5.18532159,213.63,213.59,7.97054911]
[1757379277988,5.18532159,213.63,213.62,1.70054911]
[1757379278396,12.27532159,213.64,213.62,1.70054911]
[1757379278597,7.09,213.64,213.62,1.70054911]
[1757379281601,7.09,213.66,213.6,0.03205431]
[1757379281797,5.18532159,213.66,213.61,1.70054911]
[1757379282303,7.09,213.65,213.61,1.70054911]
[1757379282602,7.09,213.66,213.61,1.70054911]
[1757379282799,119.14054911,213.68,213.61,1.70054911]
[1757379283005,7.09,213.67,213.61,1.70054911]
[1757379283698,7.09,213.67,213.6,1.73260342]
[1757379283906,119.14054911,213.68,213.6,1.73260342]
[1757379283907,7.8,213.65,213.6,0.03205431]
[1757379284206,1.70054911,213.66,213.6,0.03205431]
[1757379284599,7.8,213.65,213.6,0.03205431]
[1757379284794,1.70054911,213.66,213.6,0.03205431]
[1757379285000,7.8,213.64,213.62,1.70054911]
[1757379285303,7.8,213.67,213.62,1.70054911]
[1757379286004,124.3258707,213.68,213.62,1.70054911]
[1757379286299,7.8,213.67,213.62,1.70054911]
[1757379286901,124.3258707,213.68,213.62,1.70054911]
[1757379287300,7.8,213.67,213.62,1.70054911]
[1757379287500,124.3258707,213.68,213.62,1.70054911]
[1757379287802,124.3258707,213.68,213.53,1.70054911]
[1757379287803,7.8,213.62,213.53,1.70054911]
[1757379288003,7.8,213.62,213.51,6.25]
[1757379288004,7.8,213.62,213.55,1.70054911]
[1757379289006,7.8,213.62,213.56,0.03602327]
[1757379289906,7.8,213.6,213.56,0.03602327]
[1757379290106,1.70054911,213.61,213.56,0.03602327]
[1757379290307,5.18532159,213.64,213.56,0.03602327]
[1757379290308,7.8398006,213.64,213.56,0.03602327]
[1757379290607,7.8,213.63,213.56,0.03602327]
[1757379291104,12.98532159,213.63,213.56,0.03602327]
[1757379291702,2.65447901,213.58,213.46,6.28]
[1757379291901,7.8,213.54,213.42,6.32]
[1757379293406,0.02995432,213.5,213.42,6.32]
[1757379295609,7.8,213.49,213.42,6.32]
[1757379297100,0.02995432,213.5,213.42,6.32]
[1757379297706,7.82995432,213.5,213.42,6.32]
[1757379297902,7.82995432,213.5,213.41,2.65447901]
[1757379298505,7.82995432,213.5,213.41,8.97447901]
[1757379298705,7.82995432,213.5,213.42,6.32]
[1757379298901,7.82995432,213.5,213.44,2.65447901]
[1757379299706,7.82995432,213.5,213.42,8.97447901]
[1757379300615,7.82995432,213.5,213.46,6.32]
[1757379301314,0.02995432,213.5,213.46,6.32]
[1757379301613,0.02995432,213.5,213.48,2.65447901]
[1757379301817,0.02995432,213.5,213.45,8.97447901]
[1757379302109,0.02995432,213.5,213.46,6.32]
[1757379302702,0.02995432,213.5,213.45,2.65447901]
[1757379302703,7.8,213.49,213.45,2.65447901]
[1757379302902,7.8,213.49,213.42,8.97447901]
[1757379305119,7.8,213.49,213.42,2.65447901]
[1757379305611,7.8,213.49,213.39,2.65447901]
[1757379306005,10.45447901,213.49,213.39,2.65447901]
[1757379306206,7.83373967,213.46,213.39,2.65447901]
[1757379310627,7.83373967,213.46,213.33,6.32]
[1757379310924,7.8,213.46,213.35,2.65447901]
[1757379311318,7.82972409,213.42,213.35,2.65447901]
[1757379311824,7.82972409,213.42,213.33,127.32]
[1757379312121,7.82972409,213.42,213.35,2.65447901]
[1757379312333,0.02972409,213.42,213.36,6.32]
[1757379312526,0.02972409,213.42,213.39,6.32]
[1757379313127,0.02972409,213.42,213.39,6.33]
[1757379313322,0.02972409,213.42,213.38,2.65447901]
[1757379313722,0.02972409,213.42,213.39,6.33]
[1757379314125,0.02972409,213.42,213.38,2.65447901]
[1757379314525,0.02972409,213.42,213.39,6.33]
[1757379314927,0.02972409,213.42,213.38,2.65447901]
[1757379315126,0.02972409,213.42,213.39,6.33]
[1757379315830,0.02972409,213.42,213.38,2.65447901]
[1757379316032,0.02972409,213.42,213.39,6.33]
[1757379316224,0.02972409,213.42,213.41,2.65447901]
[1757379316426,0.02972409,213.42,213.41,8.98447901]
[1757379320528,0.02972409,213.42,213.38,2.65447901]
[1757379320734,0.02972409,213.42,213.38,8.98447901]
[1757379320937,0.02972409,213.42,213.39,6.33]
[1757379321534,7.53,213.41,213.38,2.65447901]
[1757379321738,7.53,213.41,213.35,6.33]
[1757379321739,7.53,213.41,213.35,8.98447901]
[1757379322640,7.53,213.41,213.35,2.65447901]
[1757379325140,7.53,213.41,213.31,314.82]
[1757379325335,7.53,213.41,213.32,2.65447901]
[1757379328042,7.53,213.41,213.35,2.65447901]
[1757379328341,7.53,213.41,213.33,6.33]
[1757379328342,7.53,213.41,213.38,8.98447901]
[1757379328738,0.02972409,213.42,213.39,6.33]
[1757379329043,0.02972409,213.42,213.41,2.65447901]
[1757379329744,0.02972409,213.42,213.41,8.98447901]
[1757379330543,7.53,213.49,213.41,8.98447901]
[1757379332535,7.53,213.49,213.45,6.33]
[1757379333143,7.53,213.49,213.45,6.35960654]
[1757379334246,7.53,213.51,213.45,0.02960654]
[1757379334445,12.71532159,213.51,213.45,0.02960654]
[1757379335540,7.53,213.49,213.45,0.02960654]
[1757379336243,5.18532159,213.51,213.46,6.33]
[1757379336450,5.18532159,213.5,213.46,6.33]
[1757379337044,12.71532159,213.5,213.46,6.33]
[1757379337349,7.53,213.49,213.45,0.02960654]
[1757379337649,5.18532159,213.5,213.45,0.02960654]
[1757379338151,12.71532159,213.5,213.45,6.35960654]
[1757379338842,7.53,213.49,213.45,6.35960654]
[1757379343148,5.18532159,213.51,213.48,6.33]
[1757379343349,7.32,213.52,213.48,6.33]
[1757379343651,12.50532159,213.53,213.47,2.65447901]
[1757379344049,12.50532159,213.53,213.49,6.33]
[1757379344050,5.18532159,213.53,213.49,6.33]
[1757379344250,12.50532159,213.54,213.5,2.65447901]
[1757379344450,7.32,213.54,213.5,2.65447901]
[1757379344850,7.32,213.54,213.5,8.98447901]
[1757379350348,7.32,213.54,213.52,1.69935625]
[1757379353857,7.32,213.55,213.52,1.69935625]
[1757379354155,5.18532159,213.56,213.52,1.69935625]
[1757379354555,7.32,213.55,213.52,1.69935625]
[1757379355153,5.18532159,213.56,213.52,1.69935625]
[1757379355350,7.32,213.55,213.52,1.69935625]
[1757379356057,5.18532159,213.56,213.52,1.69935625]
[1757379356355,7.32,213.55,213.52,1.69935625]
[1757379356548,5.18532159,213.56,213.52,1.69935625]
[1757379356747,7.32,213.55,213.52,1.69935625]
[1757379357448,5.18532159,213.57,213.52,1.69935625]
[1757379357951,7.32,213.56,213.37,121.0]
[1757379358161,14.20467784,213.53,213.52,0.03301384]
[1757379358360,14.20467784,213.53,213.42,6.33]
[1757379358361,9.01935625,213.53,213.42,6.33]
[1757379358562,14.19763341,213.51,213.5,0.03380611]
[1757379358966,14.19763341,213.51,213.45,1.69935625]
[1757379359162,6.87763341,213.51,213.48,0.03278665]
[1757379359361,7.32,213.5,213.48,0.03278665]
[1757379359556,6.87763341,213.51,213.48,0.03278665]
[1757379359762,7.32,213.5,213.48,0.03278665]
[1757379360264,5.17827716,213.51,213.48,0.03278665]
[1757379360760,7.32,213.5,213.49,1.69935625]
[1757379360961,5.17827716,213.52,213.49,1.69935625]
[1757379361158,7.32,213.52,213.49,1.69935625]
[1757379361358,5.17827716,213.53,213.49,1.69935625]
[1757379361659,7.32,213.53,213.49,1.69935625]
[1757379361863,1.69935625,213.53,213.48,0.03278665]
[1757379362056,7.32,213.52,213.48,0.03278665]
[1757379362360,5.17827716,213.53,213.48,0.03278665]
[1757379362858,5.17827716,213.52,213.48,0.03278665]
[1757379363163,7.32,213.51,213.48,0.03278665]
[1757379363760,5.17827716,213.52,213.48,0.03278665]
[1757379364059,7.32,213.51,213.48,0.03278665]
[1757379364659,5.17827716,213.52,213.48,0.03278665]
[1757379365158,7.32,213.51,213.48,0.03278665]
[1757379365556,7.32,213.5,213.48,0.03278665]
[1757379366166,5.17827716,213.51,213.48,0.03278665]
[1757379366364,7.32,213.5,213.48,0.03278665]
[1757379366960,5.17827716,213.52,213.49,1.69935625]
[1757379367156,5.17827716,213.53,213.49,8.02935625]
[1757379367355,12.49827716,213.53,213.49,8.02935625]
[1757379367563,5.17827716,213.53,213.49,8.02935625]
[1757379367764,12.49827716,213.53,213.49,8.02935625]
[1757379368065,7.32,213.52,213.49,8.02935625]
[1757379369463,12.49827716,213.52,213.49,8.02935625]
[1757379369664,7.32,213.51,213.49,1.69935625]
[1757379370465,5.17827716,213.52,213.49,1.69935625]
[1757379370666,7.32,213.51,213.49,1.69935625]
[1757379370872,5.17827716,213.52,213.5,6.33]
[1757379371072,5.17827716,213.52,213.51,1.69935625]
[1757379371666,12.49827716,213.52,213.51,1.69935625]
[1757379372167,5.17827716,213.52,213.51,1.69935625]
[1757379372371,5.17827716,213.53,213.51,8.02935625]
[1757379372568,5.17827716,213.53,213.52,1.69935625]
[1757379372772,5.17827716,213.55,213.52,8.02935625]
[1757379372976,5.17827716,213.55,213.54,1.69935625]
[1757379373971,5.17827716,213.55,213.52,0.03019811]
[1757379374170,12.41827716,213.53,213.52,0.03019811]
[1757379374372,7.24,213.53,213.52,0.03019811]
[1757379374671,12.44296759,213.53,213.52,0.03019811]
[1757379374873,7.24,213.53,213.52,0.03019811]
[1757379384780,15.01798238,213.53,213.52,0.03019811]
[1757379388593,8.93935625,213.53,213.52,0.03019811]
[1757379388795,8.93935625,213.53,213.45,1.69935625]
[1757379388994,5.20998995,213.48,213.43,1.69935625]
[1757379389183,7.24,213.45,213.43,1.69935625]
[1757379389795,7.24,213.45,213.28,5.25565172]
[1757379389796,5.20998995,213.46,213.41,1.69935625]
[1757379389985,7.24,213.44,213.41,1.69935625]
[1757379391394,7.24,213.44,213.41,8.04935625]
[1757379393093,5.23994654,213.46,213.41,1.69935625]
[1757379393490,5.23994654,213.46,213.43,1.69935625]
[1757379393797,12.47994654,213.46,213.43,1.69935625]
[1757379393992,12.47994654,213.46,213.43,8.04935625]
[1757379394296,7.24,213.45,213.43,1.69935625]
[1757379397094,0.02995659,213.46,213.42,1.69935625]
[1757379397295,5.23994654,213.46,213.42,1.69935625]
[1757379397895,7.24,213.45,213.42,1.69935625]
[1757379398296,0.02995659,213.46,213.42,1.69935625]
[1757379398495,7.24,213.45,213.42,1.69935625]
[1757379398696,0.02995659,213.46,213.42,1.69935625]
[1757379399303,7.24,213.45,213.42,8.05935625]
[1757379400902,7.24,213.45,213.44,1.69935625]
[1757379403301,7.24,213.45,213.42,1.69935625]
[1757379403701,0.02995659,213.46,213.42,1.69935625]
[1757379403903,7.21,213.45,213.42,1.69935625]
[1757379404403,5.23994654,213.46,213.42,1.69935625]
[1757379404805,7.21,213.45,213.42,1.69935625]
[1757379405505,5.23994654,213.46,213.42,1.69935625]
[1757379405705,7.21,213.45,213.4,1.69935625]
[1757379405907,5.23994654,213.46,213.4,1.69935625]
[1757379406102,7.21,213.45,213.4,1.69935625]
[1757379406799,0.02995659,213.46,213.4,1.69935625]
[1757379407002,7.21,213.45,213.4,1.69935625]
[1757379407195,0.02995659,213.46,213.4,1.69935625]
[1757379407800,7.21,213.45,213.4,1.69935625]
[1757379408000,0.02995659,213.46,213.4,1.69935625]
[1757379408205,7.21,213.45,213.4,1.69935625]
[1757379409401,0.02995659,213.46,213.4,1.69935625]
[1757379410106,7.21,213.45,213.4,1.69935625]
[1757379410311,0.02995659,213.46,213.4,1.69935625]
[1757379410606,7.21,213.45,213.4,1.69935625]
[1757379411006,7.21,213.45,213.39,6.36]
[1757379411201,7.21,213.45,213.42,1.69935625]
[1757379411407,5.20998995,213.47,213.42,1.69935625]
[1757379411806,7.21,213.46,213.42,1.69935625]
[1757379412309,5.23966505,213.47,213.39,6.36]
[1757379412508,7.21,213.46,213.39,6.36]
[1757379415412,7.21,213.46,213.38,2.65805508]
[1757379415612,12.41998995,213.46,213.35,9.01805508]
[1757379415812,7.21,213.43,213.35,9.01805508]
[1757379416008,7.21,213.43,213.36,6.36]
[1757379416210,7.21,213.43,213.38,2.65805508]